Cogmind - Beta 15 @@@ ROGUE MODE // 2025.07.17 @ 09:51:41 Player: Carpathian Result: Self-destructed Performance ------------- Evolutions (2) 1000 Regions Visited (5) 1000 Robots Destroyed (26) 130 Value Destroyed (572) 572 Prototype IDs (0) 0 Alien Tech Used (0) 0 Bonus (46) 46 TOTAL SCORE: 2748 Bonus ------- Follower Combat Kills 60 Friendly Fire -14 Cogmind --------- Core Integrity 322/550 Matter 209/300 Energy 40/265 System Corruption 0% Temperature Warning (302) Movement Hovering (131) Ox1 Location -8/Materials Parts ------- > --- POWER (1) -------- Improved Ion Engine > --- PROPULSION (2) --- Airjet Combat Airjet > --- UTILITY (6) ------ Large Storage Unit > --- WEAPON (2) ------- (None) > --- INVENTORY (15) --- Large Storage Unit Improved Signal Interpreter Core Shielding Light Armor Plating Mining Laser Peak State ------------ > --- POWER ------------ Improved Ion Engine > --- PROPULSION ------- Light Treads Light Treads > --- UTILITY ---------- Large Storage Unit Improved Terrain Scanner ECM Suite Hardened Light Armor Plating > --- WEAPON ----------- Beam Rifle Light Assault Rifle > --- INVENTORY -------- Improved Ion Engine Combat Airjet Large Storage Unit Improved Signal Interpreter Core Shielding EM Shotgun Mini Grenade Launcher Mining Laser Enhanced Flamer [Rating: 16] Favorites ----------- Power Ion Engine Engine Ion Engine Propulsion Light Treads Treads Light Treads Leg Aluminum Leg Hover Unit Combat Airjet Utility Large Storage Unit Device ECM Suite Storage Large Storage Unit Processor Transport Network Coupler Protection Hardened Light Armor Plating Weapon Assault Rifle Energy Gun Beam Rifle Ballistic Gun Assault Rifle Ballistic Cannon Light Cannon Launcher Grenade Launcher Special Weapon Enhanced Flamer Build | -11 -10 -10 -9 -9 -8 ------- Run | Yrd Mat Min Mat Min Mat Slots Evolved 4 | . . . 2 . 2 Power . | . . . . . . Propulsion . | . . . . . . Utility 4 | . . . 2 . 2 Weapon . | . . . . . . Parts Attached 36 | 6 3 7 4 7 9 Power 6 | 1 . 2 . 2 1 Engine 6 | 1 . 2 . 2 1 Core . | . . . . . . Reactor . | . . . . . . Propulsion 9 | 2 . 2 2 1 2 Treads 5 | 2 . . 2 1 . Leg 2 | . . 2 . . . Wheel . | . . . . . . Hover 2 | . . . . . 2 Flight . | . . . . . . Utility 6 | 1 2 1 . 1 1 Device 2 | . . 1 . 1 . Storage 2 | 1 1 . . . . Processor 1 | . 1 . . . . Hackware . | . . . . . . Protection 1 | . . . . . 1 Artifact . | . . . . . . Weapon 15 | 2 1 2 2 3 5 Energy Gun 4 | . . . . . 4 Energy Cannon . | . . . . . . Ballistic Gun 5 | 2 . . 1 2 . Ballistic Cannon 2 | . 1 1 . . . Launcher 3 | . . 1 1 . 1 Special Weapon 1 | . . . . 1 . Impact Weapon . | . . . . . . Slashing Weapon . | . . . . . . Piercing Weapon . | . . . . . . Special Melee Weapon . | . . . . . . Unidentified Prototypes . | . . . . . . Parts Lost 19 | . . 6 . 1 12 Power 1 | . . . . . 1 Propulsion 4 | . . 2 . . 2 Utility 4 | . . 1 . . 3 Weapon 10 | . . 3 . 1 6 Highest Loss Streak 9 | . . 2 . 1 9 To Critical Strikes . | . . . . . . Average Backups 6 | 2 4 6 6 9 8 Power 1 | . 1 1 . 1 . Propulsion 1 | 1 2 2 1 1 1 Utility 1 | . . 1 1 2 3 Weapon 2 | . 1 2 2 4 3 Tool/Special . | . . . . . . Unused Backups 6 | 1 . . . . 5 Power . | . . . . . . Propulsion . | . . . . . . Utility 4 | . . . . . 4 Weapon 2 | 1 . . . . 1 Tool/Special . | . . . . . . Average Slot Usage (%) 82 | . 86 88 76 83 69 Engine 12 | . 14 14 11 11 8 Treads 19 | . 28 19 16 22 14 Leg 1 | . . 2 5 . . Device 9 | . . 8 11 17 11 Storage 12 | . 14 14 11 11 9 Processor 1 | . 1 2 . . . Protection 1 | . . . . . 8 Energy Gun 1 | . . . . . 9 Ballistic Gun 14 | . 16 13 21 17 6 Ballistic Cannon 5 | . 11 12 . . . Peak Build Rating 16 | 6 7 11 10 14 16 Average Rating 9 | 5 6 8 8 11 13 On Entrance 6 | . 6 7 7 9 12 Naked Turns . | . . . . . . Heaviest Build 40 | 12 28 38 32 32 40 Greatest Support 40 | 40 40 40 40 40 40 Greatest Overweight (x) 10 | . . 9 10 . 1 Average Overweight (x) . | . . . . . . Largest Inventory Capacity 15 | 8 15 15 15 15 15 Average Capacity 13 | 7 9 15 15 15 15 Most Carried 12 | 5 8 8 9 12 11 Average Carried 6 | 2 4 6 6 9 8 Final Capacity 15 | 8 15 15 15 15 15 Final Carried 9 | 3 7 3 9 9 5 Class Distribution -------------------- 100% | Mutant Dominant Class ---------------- Mutant | -10/Materials Mutant | -10/Mines Mutant | -9/Materials Mutant | -9/Mines Mutant | -8/Materials Resources | -11 -10 -10 -9 -9 -8 ----------- Run | Yrd Mat Min Mat Min Mat Matter Collected 911 | 240 30 323 36 153 129 Remotely . | . . . . . . Salvage Created 670 | . . 133 104 121 312 Parts 42 | . . 7 5 13 17 Haulers Intercepted . | . . . . . . Recyclers Shooed . | . . . . . . Parts Field Recycled . | . . . . . . Retrieved Matter . | . . . . . . Parts Self-Destructed . | . . . . . . Prevented . | . . . . . . Kills | -11 -10 -10 -9 -9 -8 ------- Run | Yrd Mat Min Mat Min Mat Combat Hostiles Destroyed 36 | . . 16 5 10 5 Guns 13 | . . 1 3 6 3 Cannons 5 | . . 4 . 1 . AOE 17 | . . 11 2 3 1 Classes Destroyed 8 | . . 3 2 1 2 Builder 2 | . . 1 . . 1 Tunneler 1 | . . . . 1 . Recycler 1 | . . . . . 1 Swarmer 13 | . . . 3 10 . Grunt 5 | . . 2 1 . 2 Sentry 3 | . . . 1 . 2 Hunter 1 | . . . . . 1 Assembled 14 | . . 14 . . . Best Kill Streak 13 | . . 13 4 4 3 Combat Bots Only 13 | . . 13 4 3 2 Max Kills in Single Turn 4 | . . 4 2 3 1 Gunslinging . | . . . . . . Exploded 4 | . . 4 2 3 1 Melee . | . . . . . . Uniques/NPCs Destroyed . | . . . . . . Combat | -11 -10 -10 -9 -9 -8 -------- Run | Yrd Mat Min Mat Min Mat Hostile Shots Fired 262 | . . 71 30 74 87 Missed 79 | . . 24 11 18 26 Hits 183 | . . 47 19 56 61 Melee 1 | . . 1 . . . Projectile 182 | . . 46 19 56 61 AOE 8 | . . 8 . . . Critical Strikes 4 | . . . . 1 3 Part Disruptions 2 | . . 2 . . . Damage Taken 2467 | . . 876 178 464 949 Core 467 | . . 90 44 105 228 Absorbed by Shields . | . . . . . . Core Remaining (%) 75 | 100 . 64 . 62 . Volleys Fired 107 | . . 33 12 25 37 Largest 2 | . . 2 2 2 2 Hottest 136 | . . 68 53 103 136 Shots Fired 180 | . . 50 18 40 72 Gun 127 | . . 15 16 29 67 Cannon 31 | . . 31 . . . Launcher 9 | . . 4 2 1 2 Special 13 | . . . . 10 3 Kinetic 106 | . . 46 16 29 15 Thermal 57 | . . . . 10 47 Explosive 9 | . . 4 2 1 2 Electromagnetic 8 | . . . . . 8 Robot Hit Streak 6 | . . 5 5 6 6 Robot Miss Streak 4 | . . 3 3 3 4 Penetration Max . | . . . . . . Secondary Targets . | . . . . . . Shots Hit Robots 100 | . . 24 11 20 45 Core Hits 66 | . . 34 6 11 15 Critical Kills 1 | . . . . 1 . Critical Parts Destroyed 1 | . . 1 . . . Critical Strikes 5 | . . 1 . 2 2 Burn 3 | . . . . 1 2 Destroy 2 | . . 1 . 1 . Melee Attacks . | . . . . . . Impact . | . . . . . . Slashing . | . . . . . . Piercing . | . . . . . . Sneak Attacks . | . . . . . . Combat Hostiles . | . . . . . . Follow-up Attacks . | . . . . . . Damage Inflicted 2412 | . . 1007 318 415 672 Guns 984 | . . 117 149 203 515 Cannons 250 | . . 250 . . . Explosions 1091 | . . 640 169 159 123 Melee . | . . . . . . Ramming . | . . . . . . Kinetic 794 | . . 367 149 203 75 Thermal 426 | . . . . 53 373 Explosive 1091 | . . 640 169 159 123 Electromagnetic 101 | . . . . . 101 Impact . | . . . . . . Slashing . | . . . . . . Piercing . | . . . . . . Highest Corruption 1 | . . 1 . . . Average Corruption 1 | . . 1 . . . Corruption Purged . | . . . . . . Corruption Blocked . | . . . . . . Effects 3 | . . 3 . . . Matter Fused 2 | . . 2 . . . Energy Discharges 1 | . . 1 . . . Overload Shots . | . . . . . . Overflow Damage 36 | . . 4 10 22 . Projectiles 4 | . . 4 . . . Explosions 32 | . . . 10 22 . Melee . | . . . . . . Knockbacks 4 | . . 4 . . . Impact . | . . . . . . Kinetic 4 | . . 4 . . . Secondary . | . . . . . . Self-Inflicted Damage 11 | . . . . . 11 Shots 1 | . . . . . 1 Rammed . | . . . . . . Targets Rammed . | . . . . . . Kicked . | . . . . . . Crushed . | . . . . . . Highest Temperature 546 | . . 115 . 106 546 Average Temperature 146 | . . 45 . 47 208 Received Heat Transfer 661 | . . 193 54 . 414 Effects 21 | . . . . . 21 Shutdowns 3 | . . . . . 3 Energy Bleed 1 | . . . . . 1 Interference 3 | . . . . . 3 Matter Decay 1 | . . . . . 1 Short Circuit 1 | . . . . . 1 Damage (minor) 1 | . . . . . 1 Damage (major) 10 | . . . . . 10 Damage (core) 1 | . . . . . 1 Siege Activations . | . . . . . . Martial Activations . | . . . . . . Shielding Activations . | . . . . . . Robots Disrupted . | . . . . . . Combat Hostiles . | . . . . . . Robots Corrupted . | . . . . . . Combat Hostiles . | . . . . . . Parts Fried . | . . . . . . Impact Corruptions . | . . . . . . Robots Melted 1 | . . . . . 1 Combat Hostiles 1 | . . . . . 1 Parts Melted 3 | . . . . 1 2 Heat Transferred 1762 | . . . . 560 1202 Parts Sabotaged . | . . . . . . Parts Stolen . | . . . . . . Parts Stripped . | . . . . . . Power Chain Reactions . | . . . . . . Alert | -11 -10 -10 -9 -9 -8 ------- Run | Yrd Mat Min Mat Min Mat Maximum Alert Level . | . . . . . . Low Security (%) 100 | 100 100 100 100 100 100 Level 1 . | . . . . . . Level 2 . | . . . . . . Level 3 . | . . . . . . Level 4 . | . . . . . . Level 5 . | . . . . . . High Security . | . . . . . . Max Security . | . . . . . . Peak Influence 136 | . . 81 116 136 57 Initial 42 | . . . . 42 23 Average 24 | . . 11 16 98 12 Influence Increases 792 | . . 192 164 234 202 Destroy 0b10 Robot/C 520 | . . 120 100 200 100 Destroy 0b10 Robot/NC 20 | . . 5 . 5 10 Destroy Leader 130 | . . 30 30 20 50 Allied During Kill 16 | . . 16 . . . Successful Hack 17 | . . . 14 . 3 Disable Machine 30 | . . . 15 . 15 Destroy Structure 59 | . . 21 5 9 24 Influence Decreases 792 | . . 192 56 282 262 Entered New Map 103 | . . . . 66 37 Time Decay 489 | . . 102 56 206 125 Lost Part 143 | . . 33 . 10 100 Lost Ally 57 | . . 57 . . . Squads Dispatched 4 | . . . 1 . 3 Investigation . | . . . . . . Extermination . | . . . . . . Reinforcement 4 | . . . 1 . 3 Assault . | . . . . . . Garrison . | . . . . . . Intercept . | . . . . . . Searches Triggered . | . . . . . . Construction Impeded . | . . . . . . Haulers Reinforced . | . . . . . . Active Scanning Responses . | . . . . . . Cargo Convoy Interrupts . | . . . . . . Stealth | -11 -10 -10 -9 -9 -8 --------- Run | Yrd Mat Min Mat Min Mat Distress Signals 2 | . . . . . 2 Communications Jammed . | . . . . . . Distress Signals . | . . . . . . Times Spotted 61 | . . 28 7 12 14 Peak Tracking Total 16 | . . 16 4 4 5 Tactical Retreats 5 | . . 4 . 1 . Traps | -11 -10 -10 -9 -9 -8 ------- Run | Yrd Mat Min Mat Min Mat Traps Triggered . | . . . . . . Indirectly . | . . . . . . Trap Hack Attempts . | . . . . . . Triggered . | . . . . . . Disarmed . | . . . . . . Reprogrammed . | . . . . . . Reused . | . . . . . . Traps Extracted . | . . . . . . Installed . | . . . . . . Triggered . | . . . . . . Machines | -11 -10 -10 -9 -9 -8 ---------- Run | Yrd Mat Min Mat Min Mat Machines Disabled 2 | . . . 1 . 1 Max in Single Turn 1 | . . . 1 . 1 Machines Repaired . | . . . . . . Machines Dismantled . | . . . . . . Machines Sabotaged . | . . . . . . Overloaded Fab Kills . | . . . . . . Hacking | -11 -10 -10 -9 -9 -8 --------- Run | Yrd Mat Min Mat Min Mat Machines Accessed 3 | . . . 2 . 1 Terminals 3 | . . . 2 . 1 Fabricators . | . . . . . . Repair Stations . | . . . . . . Recycling Units . | . . . . . . Scanalyzers . | . . . . . . Garrison Access . | . . . . . . Total Hacks 3 | . . . 2 . 1 Successful 3 | . . . 2 . 1 Failed . | . . . . . . Catastrophic . | . . . . . . Database Lockouts . | . . . . . . Manual . | . . . . . . Terminals 3 | . . . 2 . 1 Fabricators . | . . . . . . Repair Stations . | . . . . . . Recycling Units . | . . . . . . Scanalyzers . | . . . . . . Garrison Access . | . . . . . . Terminal Hacks 3 | . . . 2 . 1 Emergency Access Points 1 | . . . 1 . . Dispatch Records 1 | . . . 1 . . Maintenance Status 1 | . . . . . 1 Fabricator Hacks . | . . . . . . Repair Station Hacks . | . . . . . . Recycling Unit Hacks . | . . . . . . Scanalyzer . | . . . . . . Garrison Access Hacks . | . . . . . . Unauthorized Hacks . | . . . . . . Terminals . | . . . . . . Fabricators . | . . . . . . Repair Stations . | . . . . . . Recycling Units . | . . . . . . Scanalyzers . | . . . . . . Garrison Access . | . . . . . . Data Cores Recovered . | . . . . . . Used . | . . . . . . Hacking Detections 1 | . . . . . 1 Full Trace Events . | . . . . . . Feedback Events . | . . . . . . Feedback Blocked . | . . . . . . Robot Schematics Acquired . | . . . . . . Robots Built . | . . . . . . Authchips . | . . . . . . Time . | . . . . . . Total Robot Build Rating . | . . . . . . Part Schematics Acquired . | . . . . . . Parts Built . | . . . . . . Authchips . | . . . . . . Time . | . . . . . . Total Part Build Rating . | . . . . . . Parts Repaired . | . . . . . . Time . | . . . . . . Parts Recycled . | . . . . . . Recycled Matter . | . . . . . . Retrieved Matter . | . . . . . . Retrieved Components . | . . . . . . Parts Scanalyzed . | . . . . . . Part Schematics Acquired . | . . . . . . Parts Damaged . | . . . . . . Bothacking | -11 -10 -10 -9 -9 -8 ------------ Run | Yrd Mat Min Mat Min Mat Used RIF Installer . | . . . . . . Robots Hacked . | . . . . . . Non-combat . | . . . . . . Combat . | . . . . . . Robot Hacks Applied . | . . . . . . Relay Couplers Released . | . . . . . . Fabnet Peak Effective % . | . . . . . . Robots Rewired . | . . . . . . Allies Hacked . | . . . . . . Hacks Repelled . | . . . . . . Allies | -11 -10 -10 -9 -9 -8 -------- Run | Yrd Mat Min Mat Min Mat Total Allies 4 | . . 4 . . . Largest Group 4 | . . 4 . . . Highest-Rated Group 71 | . . 71 . . . Highest-Rated Ally 31 | . . 31 . . . Total Orders . | . . . . . . Ally Attacks 17 | . . 17 . . . Total Damage 205 | . . 205 . . . Kills 4 | . . 4 . . . Allies Corrupted . | . . . . . . Allies Melted . | . . . . . . Intel | -11 -10 -10 -9 -9 -8 ------- Run | Yrd Mat Min Mat Min Mat Active Infowar (turns) 1768 | . 37 567 426 421 317 Terrain 386 | . . . . 261 125 T.N.C. 52 | . 37 15 . . . ECM 1716 | . . 552 426 421 317 Robot Analysis Total . | . . . . . . Derelict Logs Recovered . | . . . . . . Drone Launches . | . . . . . . Drone Recoveries . | . . . . . . Exploration | -11 -10 -10 -9 -9 -8 ------------- Run | Yrd Mat Min Mat Min Mat Turns Passed 2633 | 121 327 926 426 421 412 Spaces Moved 1155 | 73 168 382 214 164 154 Core 39 | 16 . 19 4 . . Treads 1048 | 57 168 335 174 164 150 Legs 64 | . . 28 36 . . Wheels . | . . . . . . Hover 4 | . . . . . 4 Flight . | . . . . . . Fastest Speed 50 | 50 160 160 160 160 131 Average Speed 175 | 135 160 200 172 160 168 Slowest Speed 550 | 160 160 500 550 160 240 Overloaded Moves . | . . . . . . Propulsion Burnouts . | . . . . . . Robots Hopped . | . . . . . . Potential Cave-ins . | . . . . . . Cave-ins Triggered . | . . . . . . Exploration Rate (%) 32 | 5 29 72 25 43 19 Regions Visited 5 Branch Regions 2 Pre-discovered Areas . | . . . . . . Known Exits Taken . | . . . . . . Unknown Exits Taken 5 | 1 1 1 1 1 . Scrap Searched 2 | . . 1 . 1 . Spaces Dug . | . . . . . . Terrain Destroyed 71 | . . 35 5 9 22 Melee . | . . . . . . Projectile 3 | . . 3 . . . AOE 68 | . . 32 5 9 22 Terrain Rammed . | . . . . . . Walls Destroyed . | . . . . . . Machines Disabled . | . . . . . . Actions | -11 -10 -10 -9 -9 -8 --------- Run | Yrd Mat Min Mat Min Mat Total 1578 | 96 226 493 253 276 234 Wait 222 | 7 49 64 11 69 22 Move 1150 | 72 167 381 213 163 154 Hop . | . . . . . . Pick Up 42 | 10 6 4 9 6 7 Fast Attach . | . . . . . . Attach 25 | 6 1 6 2 2 8 Detach . | . . . . . . Swap 18 | . 2 3 3 7 3 Drop 14 | 1 1 2 3 4 3 Fire 107 | . . 33 12 25 37 Melee . | . . . . . . Ram . | . . . . . . Kick . | . . . . . . Crush . | . . . . . . Escape Stasis . | . . . . . . Rewire . | . . . . . . Trap . | . . . . . . Miscellaneous . | . . . . . . Route ------- -11/Scrapyard -10/Materials -10/Mines (discovered 2 exits: *Mat x2) -9/Materials -9/Mines -8/Materials History --------- Turn | Location | Event 6 | -11/Scrapyard | Discovered new exit (range 15) 122 | -11/Scrapyard | Entered Materials 317 | -10/Materials | Build established: Mutant 349 | -10/Materials | Discovered new exit (range 14) 449 | -10/Materials | Entered Mines 587 | -10/Mines | Assembled infested the area 592 | -10/Mines | Assisted by a Guerilla fighting off Assembled 649 | -10/Mines | Destroyed 13 combat bots 836 | -10/Mines | Received a Mining Laser from a helpful Derelict 1031 | -10/Mines | Assisted by bots powering up and referring to "LRC-V3" 1345 | -10/Mines | Discovered new exit (range 6) 1347 | -10/Mines | Discovered new exit (range 12) 1364 | -10/Mines | Lost 3 allies 1375 | -10/Mines | Entered Materials 1375 | -9/Materials | Evolved 2 slots: Utility x2 1763 | -9/Materials | Discovered new exit (range 7) 1801 | -9/Materials | Entered Mines 1908 | -9/Mines | A weapon hastily lodged in a ceiling crevice suddenly fell to the ground 2204 | -9/Mines | Discovered new exit (range 11) 2222 | -9/Mines | Entered Materials 2222 | -8/Materials | Evolved 2 slots: Utility x2 2634 | -8/Materials | Self-destructed Last Messages --------------- 02617_ Overheating: Matter decay (-36). 02617_ The unstable cave ceiling collapses. 02617_ Imp. Grenade Launcher destroyed. 02619_ Enh. Flamer broken. 02619_ Overheating: Short circuit. 02619_ Broken Enh. Flamer destroyed. 02620_ Hrd. Light Armor Plating destroyed. 02621_ Overheating: Lrg. Storage Unit damaged (-215). 02621_ Overheating: ECM Suite damaged (-1). 02621_ ECM Suite destroyed. 02622_ Overheating: Core damaged (-71). 02625_ Power failure, Imp. Ion Engine shutdown. 02627_ Acquired 6 matter. 02629_ U-05 Engineer builds a Wall. 02629_ R-06 Scavenger collects Aluminum Leg. 02630_ Acquired Particle Gun. 02631_ U-05 Engineer lays Concrete. 02633_ U-05 Engineer builds a Wall. 02633_ Particle Gun destroyed. 02633_ U-05 Engineer lays Concrete. Map ----- +----------------------------------------------------+ | ?????????????????????????????????????????# #????? | | ??????????????????????????????????????#??# #???? | | ?????????????????????????????????????????# #??? | | ?????????????????????????????????????????# #???"" | | ?????????????????????????????????????????# #?? "" | | ???????????????????????????############### #? "" | | ???????????????????????????# """"" ## # | | ???????????????????????????# / """"" + # "" | | ???????????????????????????# """"" ## + "" | | ???????????????????????????# ! =[* ## # "" | | ???????????????????????? # [ ]* ## !#?? | | ???????????????????????? ######""####### ###### | | ???????????????????????? #???# % ##### # | | ???????????????????????# #???# == # """ | | ???????????????????????# #???# |% ! + """ | | ??????????????????????## ##??# ##### # """ | | ??????????????????????# #??## ##???###### | | ??????????????????????# #???# #?????????# """ | | ??????????????????????+ #???# #?????????# """ | | ??????????????????????# #???# #?????????# """ | | ?????????????????#??###u #??## ########### | | ?????????????# ### ## # # #### # """ | | ?????????????# r % # """ | | ?????????????+ u o # """ | | ?????????????#+##+#### * g " " """ # | | ?????????????# %@ T """ """ ##### | | ?????????????#] ! g """ """ #???? | | ?????????????# g """ """ """ #???? | | ?????????????# = # """ """ R" #???? | | ?????????????# # ! ## ??"???#???? | | ?????????????#* # + ??????????? | | ?????????????# ?# ## ??????????? | | ?????????????# ?####### ### ##??????????? | | ?????????????# ?????????/#??#+###???????????? | | ?????????????#######????????? ??????????????????? | | ????????????????????????????? ??????????????????? | | ????????????????????????????? ??????????????????? | | ????????????????????????????? ??????????????????? | | ????????????????????????????? ??????????????????? | | ????????????????????????????? ??????????????????? | | ?????????????????????????????????????????????????? | | | | | | | | | | | | | | | | | | | +----------------------------------------------------+ Best States ------------- Heat Dissipation 31 Energy Generation 12 Energy Capacity 265 Matter Stores 300 Matter Capacity 300 Sight Range 16 Terrain Scan Range 16 Terrain Scan Density 10 ECM Strength 1 Armor Coverage 150 Evasion (%) 50 Recoil Reduction 2 Item Schematics ----------------- None Robot Schematics ------------------ None Fabricated ------------ Nothing Repaired ---------- Nothing Alien Tech Used ----------------- None Achievements -------------- None Challenges ------------ None Game ------ Seed CannonLongswordMinigun Manual? 0 Play Time 00:18:31 Cumulative 35.8 hours Start 2025.07.17 @ 09:35:59 End 2025.07.17 @ 09:51:41 Sessions 1 Manual Loads 0 Difficulty Rogue Special Mode None Game No. 189 Rogue 189 Adventurer 0 Explorer 0 Win Type - Total 0 Types 0/0/0/0/0/0/0/0/0/0 Lore% 11 Gallery% 25 Achievement% 20 Wizard Run 0 Options --------- Layout 0 ASCII 0 Keyboard 0 Movement Arrows Keybinds 0 Fullscreen 2 Font 24/Cog Map View 76x50 Zoom Use 0% Tactical HUD 1 Map Filters NONE Filters NONE Steam 1 RUN: 8334c7fa-dfde-4617-aba8-5cac5d31525e